fUST/lending_fUST_20260110
["ID","MTS","AMOUNT","RATE_DAILY","PERIOD"]
[401154249,1767985853476,-151.0,0.00035616,3]
[401154250,1767985853485,-151.0,0.00035616,3]
[401154251,1767985853494,-151.0,0.00035616,3]
[401154252,1767985853503,-151.0,0.00035616,3]
[401154253,1767985853511,-151.0,0.00035616,3]
[401154254,1767985853520,-151.0,0.00035616,3]
[401154255,1767985853529,-151.0,0.00035616,3]
[401154256,1767985853538,-151.0,0.00035616,3]
[401154257,1767985853547,-151.0,0.00035616,3]
[401154258,1767985853557,-151.0,0.00035616,3]
[401154259,1767985853567,-151.0,0.00035616,3]
[401154260,1767985853576,-151.0,0.00035616,3]
[401154261,1767985853586,-151.0,0.00035616,3]
[401154262,1767985853595,-151.0,0.00035616,3]
[401154263,1767985853605,-151.0,0.00035616,3]
[401154264,1767985853614,-151.0,0.00035616,3]
[401154265,1767985853624,-151.0,0.00035616,3]
[401154266,1767985853633,-151.0,0.00035616,3]
[401154267,1767985853642,-151.0,0.00035616,3]
[401154268,1767985853651,-151.0,0.00035616,3]
[401154269,1767985853661,-151.0,0.00035616,3]
[401154270,1767985853671,-151.0,0.00035616,3]
[401154271,1767985853680,-151.0,0.00035616,3]
[401154272,1767985853689,-151.0,0.00035616,3]
[401154273,1767985853699,-151.0,0.00035616,3]
[401154274,1767985853708,-151.0,0.00035616,3]
[401154275,1767985853717,-151.0,0.00035616,3]
[401154276,1767985853727,-151.0,0.00035616,3]
[401154277,1767985853736,-151.0,0.00035616,3]
[401154278,1767985853746,-151.0,0.00035616,3]
[401154279,1767985853756,-151.0,0.00035616,3]
[401154280,1767985853766,-151.0,0.00035616,3]
[401154281,1767985853775,-151.0,0.00035616,3]
[401154282,1767985853784,-151.0,0.00035616,3]
[401154283,1767985853794,-151.0,0.00035616,3]
[401154284,1767985853804,-151.0,0.00035616,3]
[401154285,1767985853814,-151.0,0.00035616,3]
[401154286,1767985853823,-151.0,0.00035616,3]
[401154287,1767985853833,-151.0,0.00035616,3]
[401154288,1767985853841,-151.0,0.00035616,3]
[401154289,1767985853851,-151.0,0.00035616,3]
[401154290,1767985853861,-151.0,0.00035616,3]
[401154291,1767985853870,-151.0,0.00035616,3]
[401154292,1767985853879,-151.0,0.00035616,3]
[401154293,1767985853889,-151.0,0.00035616,3]
[401154294,1767985853898,-151.0,0.00035616,3]
[401154295,1767985853907,-151.0,0.00035616,3]
[401154296,1767985853917,-151.0,0.00035616,3]
[401154297,1767985853927,-151.0,0.00035616,3]
[401154298,1767985853936,-151.0,0.00035616,3]
[401154299,1767985853946,-151.0,0.00035616,3]
[401154300,1767985853955,-151.0,0.00035616,3]
[401154301,1767985853965,-151.0,0.00035616,3]
[401154302,1767985853975,-151.0,0.00035616,3]
[401154303,1767985853984,-151.0,0.00035616,3]
[401154304,1767985853993,-151.0,0.00035616,3]
[401154305,1767985854003,-151.0,0.00035616,3]
[401154306,1767985854012,-151.0,0.00035616,3]
[401154307,1767985854022,-151.0,0.00035616,3]
[401154308,1767985854031,-151.0,0.00035616,3]
[401154309,1767985854040,-151.0,0.00035616,3]
[401154310,1767985854049,-151.0,0.00035616,3]
[401154311,1767985854059,-151.0,0.00035616,3]
[401154312,1767985854068,-151.0,0.00035616,3]
[401154313,1767985854077,-151.0,0.00035616,3]
[401154314,1767985854086,-151.0,0.00035616,3]
[401154315,1767985854096,-151.0,0.00035616,3]
[401154316,1767985854107,-151.0,0.00035616,3]
[401154317,1767985854117,-151.0,0.00035616,3]
[401154318,1767985854131,-151.0,0.00035616,3]
[401154319,1767985854140,-151.0,0.00035616,3]
[401154320,1767985854151,-151.0,0.00035616,3]
[401154321,1767985854163,-151.0,0.00035616,3]
[401154322,1767985854172,-151.0,0.00035616,3]
[401154323,1767985854183,-151.0,0.00035616,3]
[401154324,1767985854193,-151.0,0.00035616,3]
[401154325,1767985854203,-151.0,0.00035616,3]
[401154326,1767985854212,-151.0,0.00035616,3]
[401154327,1767985854222,-151.0,0.00035616,3]
[401154328,1767985854232,-151.0,0.00035616,3]
[401154329,1767985854242,-151.0,0.00035616,3]
[401154330,1767985854253,-151.0,0.00035616,3]
[401154331,1767985854265,-151.0,0.00035616,3]
[401154332,1767985854275,-151.0,0.00035616,3]
[401154333,1767985854284,-192.269571,0.00035616,3]
[401154334,1767985854293,-200.0,0.00035625,120]
[401154335,1767985854304,-1300.1,0.00035648,60]
[401154336,1767985854313,-200.0,0.00035669,120]
[401154337,1767985854323,-1419.80028822,0.00035725,2]
[401154338,1767985854332,-1300.1,0.00035748,60]
[401154339,1767985854342,-200.0,0.00035771,120]
[401154340,1767985854352,-1419.80028822,0.00035825,2]
[401154341,1767985854362,-1300.1,0.00035848,60]
[401154342,1767985854371,-377.0831682,0.00035877,30]
[401154343,1767985854381,-2000.0,0.0003589,120]
[401154344,1767985854390,-258.56,0.0003589,39]
[401154345,1767985854400,-200.0,0.00035896,120]
[401154346,1767985854410,-1419.80028822,0.00035925,2]
[401154347,1767985854420,-1300.1,0.00035948,60]
[401154348,1767985854429,-200.0,0.00035954,120]
[401154349,1767985854439,-151.50909055,0.0003597,2]
[401154350,1767985854448,-151.50909055,0.00035977,2]
[401154351,1767985854458,-200.0,0.00035991,120]
[401154352,1767985854467,-303.00909028,0.00035994,2]
[401154353,1767985854476,-3297.18372554,0.00035998,2]
[401154354,1767985854485,-2620.46867525,0.00036,30]
[401154355,1767985854495,-4212.87797199,0.00036,7]
[401154356,1767985854504,-1000.0,0.00036,120]
[401154357,1767985854513,-300.0,0.00036,120]
[401154358,1767985854522,-200.0,0.00036,7]
[401154359,1767985854532,-1041.66666667,0.00036,120]
[401154360,1767985854541,-1019.0,0.00036,7]
[401154361,1767985854551,-1419.80028822,0.00036025,2]
[401154362,1767985854560,-1300.1,0.00036048,60]
[401154363,1767985854570,-1419.80028822,0.00036125,2]
[401154364,1767985854580,-151.79423317,0.00036133,2]
[401154365,1767985854589,-151.51818218,0.00036139,2]
[401154366,1767985854599,-152.31472626,0.0003614,2]
[401154367,1767985854609,-1300.1,0.00036148,60]
[401154368,1767985854618,-200.0,0.00036161,120]
[401154369,1767985854627,-2000.0,0.00036164,120]
[401154370,1767985854636,-2000.0,0.00036164,120]
[401154371,1767985854646,-390.0,0.00036164,5]
[401154372,1767985854656,-500.0,0.00036177,14]
[401154373,1767985854665,-200.0,0.00036179,120]
[401154374,1767985854674,-151.50909055,0.00036186,2]
[401154375,1767985854683,-151.51363623,0.00036194,2]
[401154376,1767985854697,-205.14341568,0.0003621,2]
[401154377,1767985854706,-151.50454514,0.00036219,2]
[401154378,1767985854716,-1419.80028822,0.00036225,2]
[401154379,1767985854726,-151.50454514,0.00036236,2]
[401154380,1767985854735,-266.81853832,0.0003624,2]
[401154381,1767985854745,-1300.1,0.00036248,60]
[401154382,1767985854755,-151.51818218,0.00036249,2]
[401154383,1767985854764,-200.0,0.00036266,120]
[401154384,1767985854774,-155.76,0.000363,7]
[401154385,1767985854784,-1419.80028822,0.00036325,2]
[401154386,1767985854793,-1300.1,0.00036348,60]
[401154387,1767985854804,-151.05135746,0.00036349,120]
[401154388,1767985854814,-22473.54869382,0.000364,2]
[401154389,1767985854823,-151.51818218,0.00036406,2]
[401154390,1767985854833,-1419.80028822,0.00036425,2]
[401154391,1767985854843,-151.51818218,0.00036436,2]
[401154392,1767985854854,-2000.0,0.00036438,120]
[401154393,1767985854864,-258.56,0.00036438,40]
[401154394,1767985854873,-809531.2655,0.0003644,30]
[401154395,1767985854883,-1300.1,0.00036448,60]
[401154396,1767985854892,-151.51666683,0.00036473,2]
[401154397,1767985854902,-200.0,0.00036481,120]
[401154398,1767985854912,-200.0,0.00036488,120]
[401154399,1767985854922,-151.51666683,0.00036498,2]
[401154400,1767985854931,-500.0,0.00036499,120]
[401154401,1767985854940,-151.51818218,0.00036501,2]
[401154402,1767985854950,-200.0,0.00036515,120]
[401154403,1767985854959,-2000.0,0.00036521,7]
[401154404,1767985854969,-1419.80028822,0.00036525,2]
[401154405,1767985854979,-1300.1,0.00036548,60]
[401154406,1767985854989,-151.05135746,0.00036554,5]
[401154407,1767985854998,-3297.18372554,0.0003656,2]
[401154408,1767985855007,-716.75057983,0.0003656,8]
[401154409,1767985855016,-151.72429652,0.00036589,2]
[401154410,1767985855030,-175.51574377,0.000366,2]
[401154411,1767985855039,-151.63489358,0.00036634,2]
[401154412,1767985855048,-1300.1,0.00036648,60]
[401154413,1767985855059,-2027963.98495239,0.0003666,20]
[401154414,1767985855069,-4419408.02748367,0.0003666,20]
[401154415,1767985855172,-4255.77640513,0.0003666,20]
[401154438,1767987032171,-367.25509587,0.0001,2]
[401154441,1767987032182,-560.0,0.0001,2]
[401154443,1767987032191,-1200.0,0.00013147,2]
[401154445,1767987032200,-545.082905,0.00013148,2]
[401154447,1767987032211,-2820.5103435,0.00013148,2]
[401154449,1767987032221,-300.0,0.0001327,2]
[401154451,1767987032229,-300.0,0.0001327,2]
[401154453,1767987032239,-500.0,0.00013273,2]
[401154454,1767987032248,-500.0,0.00013273,2]
[401154455,1767987032257,-500.0,0.00013273,2]
[401154456,1767987032266,-500.0,0.00013273,2]
[401154457,1767987032275,-500.0,0.00013273,2]
[401154458,1767987032285,-177.0,0.00015148,2]
[401154459,1767987032294,-2324.25418592,0.00017,2]
[401154460,1767987032302,-204.0,0.00017148,2]
[401154461,1767987032312,-303.10001603,0.000189,2]
[401154462,1767987032321,-304.04513062,0.00019089,2]
[401154463,1767987032331,-231.0,0.00019148,2]
[401154464,1767987032340,-1041.66666667,0.00019757,2]
[401154465,1767987032349,-500.0,0.00019989,2]
[401154466,1767987032359,-296.97483122,0.00019989,2]
[401154467,1767987032368,-500.0,0.00019989,2]
[401154468,1767987032377,-500.0,0.00019989,2]
[401154469,1767987032386,-500.0,0.00019989,2]
[401154470,1767987032395,-500.0,0.00019989,2]
[401154471,1767987032404,-500.0,0.00019989,2]
[401154472,1767987032414,-168.10436298,0.00019989,2]
[401154473,1767987032423,-500.0,0.00019989,2]
[401154474,1767987032432,-250.0,0.00019989,2]
[401154475,1767987032442,-500.0,0.00019989,2]
[401154476,1767987032452,-500.0,0.00019989,2]
[401154477,1767987032464,-500.0,0.00019989,2]
[401154478,1767987032473,-500.0,0.00019989,2]
[401154479,1767987032482,-500.0,0.00019989,2]
[401154480,1767987032491,-500.0,0.00019989,2]
[401154481,1767987032501,-300.0,0.00019989,2]
[401154482,1767987032511,-500.0,0.00019989,2]
[401154483,1767987032520,-183.11845183,0.00019989,2]
[401154484,1767987032529,-6658.5615624,0.0002088,2]
[401154485,1767987032543,-941.97311662,0.000209,2]
[401154486,1767987032553,-6739.53,0.0002098,10]
[401154487,1767987032563,-100000.0,0.0002099,2]
[401154488,1767987032572,-599.999999,0.00021,2]
[401154489,1767987032583,-3466.11018509,0.00021,2]
[401154490,1767987032592,-258.0,0.00021148,2]
[401154491,1767987032602,-941.97311661,0.0002135,2]
[401154492,1767987032611,-1366.0,0.00021354,2]
[401154493,1767987032622,-628.0,0.00021354,2]
[401154494,1767987032632,-2146.0,0.00021354,2]
[401154495,1767987032641,-411.676,0.00021354,2]
[401154496,1767987032651,-417.0,0.00021354,2]
[401154497,1767987032660,-822.015,0.00021354,2]
[401154498,1767987032670,-196.35,0.00021354,2]
[401154499,1767987032679,-500.0,0.00021355,2]
[401154500,1767987032688,-500.0,0.00021543,2]
[401154501,1767987032697,-600.0,0.0002168,2]
[401154502,1767987032707,-223.11910904,0.00021763,2]
[401154503,1767987032715,-941.97311661,0.000218,2]
[401154504,1767987032724,-589.27388339,0.00021817,2]
[401154505,1767987032733,-687.5225215,0.00021817,2]
[401154506,1767987032742,-687.5225215,0.00021817,2]
[401154507,1767987032751,-687.5225215,0.00021817,2]
[401154508,1767987032760,-687.5225215,0.00021817,2]
[401154509,1767987032770,-687.5225215,0.00021817,2]
[401154510,1767987032779,-687.5225215,0.00021817,2]
[401154511,1767987032788,-687.5225215,0.00021817,2]
[401154512,1767987032798,-687.5225215,0.00021817,2]
[401154513,1767987032808,-687.5225215,0.00021817,2]
[401154514,1767987032816,-687.5225215,0.00021817,2]
[401154515,1767987032825,-687.5225215,0.00021817,2]
[401154516,1767987032971,-687.5225215,0.00021817,2]
[401154517,1767987032981,-687.5225215,0.00021817,2]
[401154518,1767987032990,-687.5225215,0.00021817,2]
[401154519,1767987032999,-687.5225215,0.00021817,2]
[401154520,1767987033008,-687.5225215,0.00021817,2]
[401154521,1767987033017,-687.5225215,0.00021817,2]
[401154522,1767987033026,-687.5225215,0.00021817,2]
[401154523,1767987033035,-687.5225215,0.00021817,2]
[401154524,1767987033044,-687.5225215,0.00021817,2]
[401154525,1767987033054,-687.5225215,0.00021817,2]
[401154526,1767987033063,-696.11655303,0.00021817,2]
[401154527,1767987033072,-696.11655303,0.00021817,2]
[401154528,1767987033082,-696.11655303,0.00021817,2]
[401154529,1767987033092,-696.11655303,0.00021817,2]
[401154530,1767987033101,-696.11655303,0.00021817,2]
[401154531,1767987033111,-696.11655303,0.00021817,2]
[401154532,1767987033121,-696.11655303,0.00021817,2]
[401154533,1767987033130,-696.11655303,0.00021817,2]
[401154534,1767987033139,-200.0,0.00021817,2]
[401154535,1767987033148,-200.0,0.00021817,2]
[401154536,1767987033158,-200.0,0.00021817,2]
[401154537,1767987033167,-213.45377873,0.00021817,2]
[401154538,1767987033176,-200.0,0.00021817,2]
[401154539,1767987033185,-200.0,0.00021817,2]
[401154540,1767987033194,-200.0,0.00021817,2]
[401154541,1767987033204,-334399.19364127,0.00021818,2]
[401154542,1767987033218,-373.11910904,0.00021818,2]
[401154554,1767987038171,-407.57000001,0.00021808,10]
[401154555,1767987038227,-1869.83952388,0.00021808,10]
[401154556,1767987038239,-3338.87047611,0.00021808,10]
[401154557,1767987038248,-2819.98060162,0.00021818,2]
[401154558,1767987038261,-6268.77627624,0.00021818,2]
[401154632,1767987040344,-450.5651139,0.00021818,2]
[401154635,1767987040356,-574.75499537,0.00021818,2]
[401155072,1767987045055,-454.355,0.00021818,2]
[401155145,1767988232298,-500.0,0.00013273,2]
[401155146,1767988232307,-608.0,0.00013273,2]
[401155147,1767988232317,-177.0,0.00015273,2]
[401155148,1767988232326,-204.0,0.00017273,2]
[401155149,1767988232334,-1000.0,0.00018391,2]
[401155150,1767988232343,-231.0,0.00019273,2]
[401155151,1767988232352,-1041.66666667,0.00019639,2]
[401155152,1767988232362,-1200.0,0.00019788,2]
[401155153,1767988232371,-50074.35159051,0.00019789,2]
[401155154,1767988232382,-45983.32128377,0.00019789,2]
[401155155,1767988232391,-300.0,0.00019887,2]
[401155156,1767988232399,-300.0,0.00019887,2]
[401155158,1767988232408,-8052.16149901,0.00019888,2]
[401155159,1767988232417,-187.01316132,0.00019888,2]
[401155161,1767988232426,-250.0,0.00019888,2]
[401155162,1767988232435,-200.0,0.00019888,2]
[401155163,1767988232444,-5553.13630296,0.00021173,2]
[401155164,1767988232452,-258.0,0.00021273,2]
[401155165,1767988232462,-1933.8168756,0.00021603,2]
[401155166,1767988232471,-1366.0,0.00021815,2]
[401155167,1767988232480,-2146.0,0.00021815,2]
[401155168,1767988232489,-417.0,0.00021815,2]
[401155169,1767988232498,-628.0,0.00021815,2]
[401155170,1767988232507,-714.0,0.00021815,2]
[401155171,1767988232516,-731.393511,0.00021817,2]
[401155172,1767988232525,-293.86741863,0.00021818,2]
[401155173,1767988232534,-403.96317813,0.00021818,2]
[401155174,1767988232543,-300.0,0.00022466,2]
[401155175,1767988232552,-1615.85271252,0.00023175,2]
[401155176,1767988232561,-285.0,0.00023273,2]
[401155177,1767988232570,-5553.13630295,0.0002335,2]
[401155178,1767988232578,-1041.66666667,0.00024,10]
[401155179,1767988232588,-731.393511,0.00024574,2]
[401155180,1767988232597,-380.0,0.00024658,2]
[401155182,1767988232606,-3635.66860316,0.00024802,2]
[401155183,1767988232615,-1366.0,0.00024815,2]
[401155184,1767988232623,-2146.0,0.00024815,2]
[401155185,1767988232632,-417.0,0.00024815,2]
[401155187,1767988232641,-628.0,0.00024815,2]
[401155189,1767988232650,-600.0,0.0002484,10]
[401155191,1767988232660,-236.07332131,0.00025273,2]
[401155193,1767988232669,-1785.80418473,0.00025527,2]
[401155353,1767988238374,-2784.92282678,0.00025527,2]
[401155354,1767988238386,-982.40929144,0.00025527,2]
[401155355,1767988238396,-253.88721245,0.00026398,10]
[401155408,1767988240524,-3646.30278755,0.00026398,10]
[401155410,1767988240533,-4680.23,0.00026408,10]
[401155412,1767988240543,-95.05762024,0.00026408,2]
[401155414,1767988240554,-272.33990001,0.00026408,2]
[401155418,1767988240577,-506.07978518,0.00026408,2]
[401155420,1767988240587,-335.44609879,0.00026418,2]
[401155790,1767988246430,-7993.82986755,0.00026418,2]
[401155791,1767988246439,-6463.41085007,0.00026428,2]
[401155792,1767988246448,-1174.29420484,0.00027214,2]
[401155793,1767988246458,-8329.27596634,0.00027249,2]
[401155794,1767988246467,-873.47730543,0.00027249,2]
[401155795,1767988246477,-500.0,0.00027258,2]
[401155796,1767988246486,-699.9767636,0.00027258,2]
[401155797,1767988246496,-699.9767636,0.00027258,2]
[401155798,1767988246506,-156.02806445,0.00027258,2]
[401155799,1767988246515,-699.9767636,0.00027258,2]
[401155800,1767988246523,-699.9767636,0.00027258,2]
[401155801,1767988246533,-699.9767636,0.00027258,2]
[401155802,1767988246542,-699.9767636,0.00027258,2]
[401155803,1767988246551,-699.9767636,0.00027258,2]
[401155804,1767988246560,-699.9767636,0.00027258,2]
[401155805,1767988246570,-699.9767636,0.00027258,2]
[401155806,1767988246579,-699.9767636,0.00027258,2]
[401155807,1767988246588,-699.9767636,0.00027258,2]
[401155808,1767988246597,-699.9767636,0.00027258,2]
[401155809,1767988246606,-699.9767636,0.00027258,2]
[401155810,1767988246617,-699.9767636,0.00027258,2]
[401155811,1767988246627,-699.9767636,0.00027258,2]
[401155812,1767988246636,-699.9767636,0.00027258,2]
[401155813,1767988246645,-699.9767636,0.00027258,2]
[401155814,1767988246654,-699.9767636,0.00027258,2]
[401155815,1767988246664,-699.9767636,0.00027258,2]
[401155816,1767988246673,-699.9767636,0.00027258,2]
[401155817,1767988246683,-769.97443998,0.00027258,2]
[401155818,1767988246692,-769.97443998,0.00027258,2]
[401155819,1767988246703,-769.97443998,0.00027258,2]
[401155820,1767988246712,-769.97443998,0.00027258,2]
[401155821,1767988246721,-769.97443998,0.00027258,2]
[401155822,1767988246732,-769.97443998,0.00027258,2]
[401155823,1767988246741,-30000.0,0.00027259,2]
[401155824,1767988246749,-720.0,0.00027325,30]
[401155825,1767988246759,-731.393511,0.00027331,2]
[401155826,1767988246768,-553.30270881,0.00027397,2]
[401155827,1767988246777,-176.87,0.000275,2]
[401155828,1767988246787,-5553.13630295,0.00027704,2]
[401155829,1767988246800,-3250.16,0.00027797,10]
[401155830,1767988246811,-873.47730543,0.00027797,2]
[401155831,1767988246820,-31110.0,0.00027807,2]
[401155832,1767988246831,-1366.0,0.00027815,2]
[401155833,1767988246840,-2146.0,0.00027815,2]
[401155834,1767988246849,-417.0,0.00027815,2]
[401155835,1767988246859,-628.0,0.00027815,2]
[401155836,1767988246870,-8329.27596634,0.00028045,2]
[401155837,1767988246880,-10099.07945323,0.00028055,2]
[401155838,1767988246889,-2668.56753959,0.00028355,2]
[401155839,1767988246898,-7567.0,0.00029845,10]
[401155840,1767988246908,-1625.0,0.00029845,10]
[401155841,1767988246917,-5553.13630295,0.0002988,2]
[401155842,1767988246926,-475.856,0.00029939,24]
[401155843,1767988246937,-864.0,0.00030057,30]
[401155844,1767988246946,-731.393511,0.00030088,2]
[401155845,1767988246955,-760.5,0.00030175,30]
[401155846,1767988246964,-1366.0,0.00030815,2]
[401155847,1767988246973,-2146.0,0.00030815,2]
[401155848,1767988246982,-417.0,0.00030815,2]
[401155849,1767988246991,-628.0,0.00030815,2]
[401155850,1767988247000,-199.0,0.00030958,30]
[401155851,1767988247009,-199.0,0.00031506,31]
[401155852,1767988247018,-199.0,0.00032054,32]
[401155853,1767988247027,-5208.12839588,0.00032057,2]
[401155908,1767989438687,-637.38212645,0.00019086,3]
[401155909,1767989438697,-308.53689514,0.0001959,2]
[401155910,1767989438709,-18829.11525805,0.0001959,2]
[401155911,1767989438719,-13819.92501598,0.0001959,2]
[401155912,1767989438730,-270.53999998,0.0001959,2]
[401155913,1767989438748,-6262.45254653,0.0001959,2]
[401155914,1767989438769,-5473.25929784,0.0001959,2]
[401155915,1767989438780,-8017.88949958,0.0001959,2]
[401155916,1767989438791,-706.64386769,0.0001959,2]
[401155938,1767989440795,-426.13638038,0.0001959,2]
[401155940,1767989440806,-2270.071,0.0001959,2]
[401155946,1767989440846,-1903.27946898,0.0001959,2]
[401156334,1767989445102,-477.58876523,0.00019583,2]
[401156335,1767989445112,-1217.68900787,0.0001959,2]
[401156336,1767989445123,-4042.36482029,0.0001959,2]
[401156347,1767989445890,-777.17506577,0.0001959,2]
[401156349,1767989445902,-693.05929045,0.0001959,2]
[401156350,1767989445911,-278.0965203,0.00019683,2]
[401156356,1767989446644,-763.57014637,0.00019683,2]
[401156357,1767989446654,-600.0,0.00020184,2]
[401156358,1767989446664,-300.0,0.00021035,2]
[401156359,1767989446675,-177.0,0.00021036,2]
[401156360,1767989446686,-720.0,0.00022202,10]
[401156361,1767989446698,-300.0,0.00022466,2]
[401156362,1767989446710,-1200.0,0.00022838,2]
[401156363,1767989446723,-628.0,0.00022839,2]
[401156364,1767989446735,-1366.0,0.00022839,2]
[401156365,1767989446747,-2146.0,0.00022839,2]
[401156366,1767989446758,-417.0,0.00022839,2]
[401156367,1767989446769,-714.0,0.00022839,2]
[401156369,1767989446779,-196.35,0.00022839,2]
[401156370,1767989446789,-420.0,0.0002288,2]
[401156371,1767989446799,-204.0,0.00023036,2]
[401156372,1767989446810,-864.0,0.00024422,10]
[401156373,1767989446821,-212.0,0.0002454,7]
[401156374,1767989446831,-1484.91141922,0.000248,2]
[401156375,1767989446842,-587.0,0.00024888,2]
[401156376,1767989446852,-14159.7691428,0.000249,2]
[401156377,1767989446863,-212.0,0.00024956,2]
[401156378,1767989446874,-212.0,0.00025019,2]
[401156379,1767989446885,-231.0,0.00025036,2]
[401156380,1767989446895,-212.0,0.00025082,2]
[401156381,1767989446906,-212.0,0.00025131,2]
[401156382,1767989446917,-212.0,0.00025148,2]
[401156383,1767989446928,-212.0,0.00025253,2]
[401156384,1767989446939,-214.0,0.00025417,2]
[401156385,1767989446949,-212.0,0.00025485,2]
[401156386,1767989446960,-214.0,0.0002553,2]
[401156387,1767989446972,-212.0,0.00025555,2]
[401156388,1767989446983,-1880.88,0.00025819,10]
[401156389,1767989446995,-2708.47,0.00025829,10]
[401156390,1767989447006,-2257.05,0.00025829,10]
[401156391,1767989447017,-628.0,0.00025839,2]
[401156392,1767989447028,-1366.0,0.00025839,2]
[401156393,1767989447039,-2146.0,0.00025839,2]
[401156394,1767989447049,-417.0,0.00025839,2]
[401156395,1767989447060,-714.0,0.00025839,2]
[401156396,1767989447071,-178.0,0.00025839,2]
[401156397,1767989447083,-212.0,0.00025851,2]
[401156398,1767989447094,-212.0,0.00025945,2]
[401156399,1767989447104,-212.0,0.00026006,2]
[401156400,1767989447116,-212.0,0.00026054,2]
[401156401,1767989447127,-176.87,0.000261,2]
[401156402,1767989447141,-214.0,0.00026138,2]
[401156403,1767989447152,-212.0,0.00026143,2]
[401156404,1767989447163,-214.0,0.00026149,2]
[401156405,1767989447175,-212.0,0.00026166,2]
[401156406,1767989447186,-214.0,0.0002624,7]
[401156407,1767989447197,-214.0,0.00026265,2]
[401156408,1767989447209,-212.0,0.00026283,2]
[401156409,1767989447219,-212.0,0.00026383,2]
[401156410,1767989447230,-212.0,0.00026481,2]
[401156411,1767989447242,-212.0,0.00026543,2]
[401156412,1767989447255,-7079.88457139,0.00026855,2]
[401156413,1767989447268,-742.45570961,0.00026855,2]
[401156414,1767989447280,-1000.0,0.00026865,30]
[401156415,1767989447290,-244.94035825,0.00027036,2]
[401156416,1767989447300,-639.0,0.00027071,2]
[401156417,1767989447312,-1457.0,0.00027397,2]
[401156418,1767989447323,-777.0,0.000277,2]
[401156419,1767989447333,-329.9097699,0.000282,2]
[401156420,1767989447343,-16626.1507314,0.000282,2]
[401156421,1767989447355,-1457.0,0.00028767,4]
[401156422,1767989447365,-5000.0,0.00028837,2]
[401156423,1767989447377,-628.0,0.00028839,2]
[401156424,1767989447387,-1366.0,0.00028839,2]
[401156425,1767989447399,-2146.0,0.00028839,2]
[401156426,1767989447410,-417.0,0.00028839,2]
[401156427,1767989447420,-714.0,0.00028839,2]
[401156428,1767989447431,-178.0,0.00028839,2]
[401156429,1767989447441,-202.72497206,0.0002931,2]
[401156430,1767989447451,-251.22453172,0.0002931,2]
[401156431,1767989447463,-228.0,0.00029551,30]
[401156432,1767989447473,-380.685,0.00029939,24]
[401156433,1767989447485,-1457.0,0.00030136,6]
[401156434,1767989447496,-1558.0,0.00030175,30]
[401156435,1767989447508,-7252.0,0.00030175,30]
[401156436,1767989447519,-251.22453172,0.00030544,56]
[401156437,1767989447531,-1084.21396135,0.00030802,2]
[401156438,1767989447543,-1567.4,0.00030805,10]
[401156439,1767989447553,-713.25866015,0.00030815,2]
[401156440,1767989447563,-2853.03464061,0.00030815,2]
[401156441,1767989447573,-6419.32794138,0.00030815,2]
[401156442,1767989447583,-251.22453171,0.00030853,120]
[401156443,1767989447593,-7079.88457139,0.00030892,2]
[401156444,1767989447603,-742.45570961,0.00030892,2]
[401156445,1767989447612,-353.0313,0.000309,2]
[401156446,1767989447622,-353.0313,0.000309,4]
[401156447,1767989447634,-234.9874,0.000309,5]
[401156448,1767989447645,-528.82001358,0.00030901,2]
[401156449,1767989447656,-459.21964512,0.00030901,2]
[401156450,1767989447672,-528.82001358,0.00030901,2]
[401156451,1767989447691,-528.82001358,0.00030901,2]